Cogmind - Beta 14 @@@ ROGUE MODE // 2025.01.04 @ 22:41:28 Player: Prince Malik Result: Destroyed by G-34 Mercenary with Small Laser Performance ------------- Evolutions (1) 500 Regions Visited (2) 400 Robots Destroyed (16) 80 Value Destroyed (412) 412 Prototype IDs (0) 0 Alien Tech Used (0) 0 Bonus (0) 0 TOTAL SCORE: 1392 Bonus ------- None Cogmind --------- Core Integrity 0/400 Matter 82/300 Energy 100/100 System Corruption 0% Temperature Cool (6) Movement Walking (330) Ox3 Location -9/Materials Parts ------- > --- POWER (2) -------- (None) > --- PROPULSION (2) --- Improved Aluminum Leg > --- UTILITY (2) ------ High-capacity Storage Unit > --- WEAPON (3) ------- (None) > --- INVENTORY (20) --- Ion Engine Light Treads Light Treads Aluminum Leg Heat Sink Large Storage Unit Large Storage Unit Sensor Array EM Pulse Gun Medium Laser Particle Gun Particle Gun Particle Gun Assault Rifle Assault Cannon Grenade Launcher Datajack Peak State ------------ > --- POWER ------------ Ion Engine Light Ion Engine > --- PROPULSION ------- Aluminum Leg Aluminum Leg > --- UTILITY ---------- Improved Heat Sink Large Storage Unit > --- WEAPON ----------- Assault Cannon Assault Cannon Grenade Launcher > --- INVENTORY -------- Light Treads Light Treads Aluminum Leg Large Storage Unit Sensor Array Core Shielding EM Pulse Gun Medium Laser Assault Rifle Assault Cannon Grenade Launcher Grenade Launcher Rocket Launcher Datajack [Rating: 16] Favorites ----------- Power Light Ion Engine Engine Light Ion Engine Propulsion Aluminum Leg Leg Aluminum Leg Utility Large Storage Unit Device Improved Heat Sink Storage Large Storage Unit Processor Signal Interpreter Protection Core Shielding Weapon EM Pulse Gun Energy Gun EM Pulse Gun Ballistic Gun Assault Rifle Ballistic Cannon Assault Cannon Launcher Grenade Launcher Special Melee Weapon Datajack Build | -11 -10 -9 ------- Run | Yrd Mat Mat Slots Evolved 2 | . . 2 Power 1 | . . 1 Propulsion . | . . . Utility . | . . . Weapon 1 | . . 1 Parts Attached 31 | 6 9 16 Power 7 | 1 2 4 Engine 7 | 1 2 4 Core . | . . . Reactor . | . . . Propulsion 5 | 2 . 3 Treads . | . . . Leg 5 | 2 . 3 Wheel . | . . . Hover . | . . . Flight . | . . . Utility 6 | 1 2 3 Device 1 | . . 1 Storage 3 | 1 1 1 Processor 1 | . 1 . Hackware . | . . . Protection 1 | . . 1 Artifact . | . . . Weapon 13 | 2 5 6 Energy Gun 4 | 2 1 1 Energy Cannon . | . . . Ballistic Gun 2 | . 2 . Ballistic Cannon 2 | . . 2 Launcher 3 | . 1 2 Special Weapon . | . . . Impact Weapon . | . . . Slashing Weapon . | . . . Piercing Weapon . | . . . Special Melee Weapon 2 | . 1 1 Unidentified Prototypes . | . . . Parts Lost 10 | . . 10 Power 3 | . . 3 Propulsion 2 | . . 2 Utility 1 | . . 1 Weapon 4 | . . 4 Highest Loss Streak 6 | . . 6 To Critical Strikes . | . . . Average Slot Usage (%) 93 | . 99 87 Engine 16 | . 14 19 Leg 24 | . 28 20 Device 1 | . . 3 Storage 12 | . 14 11 Processor 7 | . 13 . Protection 3 | . . 7 Energy Gun 7 | . 13 . Ballistic Gun 5 | . 10 . Ballistic Cannon 4 | . . 8 Launcher 9 | . 3 16 Peak Build Rating 16 | 6 8 16 Average Rating 9 | 4 7 13 On Entrance 4 | . 6 8 Naked Turns . | . . . Heaviest Build 58 | 12 30 58 Greatest Support 26 | 20 20 26 Greatest Overweight (x) 3 | . 1 3 Average Overweight (x) . | . . 1 Largest Inventory Capacity 20 | 8 15 20 Average Capacity 14 | 6 13 16 Most Carried 17 | 5 15 17 Average Carried 12 | 4 12 14 Final Capacity 20 | 8 15 20 Final Carried 17 | 5 15 17 Class Distribution -------------------- 78% | Mutant 15% | Tank 5% | Gunner Dominant Class ---------------- Mutant | -10/Materials Mutant | -9/Materials Resources | -11 -10 -9 ----------- Run | Yrd Mat Mat Matter Collected 420 | 219 146 55 Remotely . | . . . Salvage Created 333 | . 171 162 Parts 24 | . 12 12 Haulers Intercepted 1 | . . 1 Recyclers Shooed 1 | . . 1 Parts Field Recycled . | . . . Retrieved Matter . | . . . Parts Self-Destructed . | . . . Prevented . | . . . Kills | -11 -10 -9 ------- Run | Yrd Mat Mat Combat Hostiles Destroyed 15 | . 6 9 Guns 4 | . 4 . Cannons 1 | . . 1 AOE 10 | . 2 8 Classes Destroyed 5 | . 2 3 Hauler 1 | . . 1 Swarmer 6 | . 2 4 Grunt 7 | . 4 3 Duelist 1 | . . 1 Sentry 1 | . . 1 Best Kill Streak 8 | . 2 8 Combat Bots Only 8 | . 2 8 Max Kills in Single Turn 2 | . 1 2 Gunslinging . | . . . Exploded 2 | . 1 2 Melee . | . . . Uniques/NPCs Destroyed . | . . . Combat | -11 -10 -9 -------- Run | Yrd Mat Mat Hostile Shots Fired 187 | . 21 166 Missed 45 | . 10 35 Damage Taken 1608 | . 115 1493 Core 413 | . 11 402 Absorbed by Shields . | . . . Redirected to Shielding 51 | . . 51 Core Remaining (%) 97 | 100 95 . Volleys Fired 22 | . 12 10 Largest 3 | . 2 3 Hottest 118 | . 60 118 Shots Fired 48 | . 24 24 Gun 21 | . 21 . Cannon 16 | . . 16 Launcher 11 | . 3 8 Special . | . . . Kinetic 28 | . 12 16 Thermal . | . . . Explosive 11 | . 3 8 Electromagnetic 9 | . 9 . Robot Hit Streak 8 | . 8 3 Robot Miss Streak 3 | . 3 1 Penetration Max . | . . . Secondary Targets 1 | . 1 . Max Gunslinging Chain 1 | . 1 . Shots Hit Robots 23 | . 17 6 Core Hits 27 | . 11 16 Critical Kills . | . . . Critical Parts Destroyed . | . . . Critical Strikes . | . . . Melee Attacks 1 | . 1 . Impact . | . . . Slashing . | . . . Piercing . | . . . Sneak Attacks 1 | . 1 . Combat Hostiles . | . . . Follow-up Attacks . | . . . Damage Inflicted 1070 | . 261 809 Guns 162 | . 162 . Cannons 204 | . . 204 Explosions 679 | . 99 580 Melee . | . . . Ramming 25 | . . 25 Kinetic 304 | . 100 204 Thermal . | . . . Explosive 679 | . 99 580 Electromagnetic 62 | . 62 . Impact . | . . . Slashing . | . . . Piercing . | . . . Highest Corruption . | . . . Average Corruption . | . . . Corruption Purged . | . . . Corruption Blocked . | . . . Overload Shots . | . . . Overflow Damage 43 | . . 43 Projectiles 8 | . . 8 Explosions 35 | . . 35 Melee . | . . . Knockbacks 3 | . . 3 Impact . | . . . Kinetic 3 | . . 3 Secondary . | . . . Self-Inflicted Damage 94 | . 5 89 Shots 4 | . 1 3 Rammed . | . . . Targets Rammed 14 | . . 14 Kicked 14 | . . 14 Crushed . | . . . Highest Temperature 145 | . 24 145 Average Temperature 40 | . 15 51 Received Heat Transfer 552 | . 48 504 Siege Activations . | . . . Robots Corrupted . | . . . Combat Hostiles . | . . . Parts Fried . | . . . Impact Corruptions . | . . . Robots Melted . | . . . Combat Hostiles . | . . . Parts Melted . | . . . Heat Transferred . | . . . Parts Sabotaged . | . . . Parts Stolen . | . . . Parts Stripped . | . . . Power Chain Reactions . | . . . Alert | -11 -10 -9 ------- Run | Yrd Mat Mat Peak Influence 295 | . 234 295 Initial 14 | . . 14 Average 106 | . 67 169 Maximum Alert Level 1 | . 1 1 Low Security (%) 67 | 100 88 38 Level 1 32 | . 11 61 Level 2 . | . . . Level 3 . | . . . Level 4 . | . . . Level 5 . | . . . High Security . | . . . Max Security . | . . . Squads Dispatched 3 | . 2 1 Investigation 2 | . 1 1 Extermination . | . . . Reinforcement 1 | . 1 . Assault . | . . . Garrison . | . . . Intercept . | . . . Searches Triggered . | . . . Construction Impeded . | . . . Haulers Reinforced . | . . . Active Scanning Responses . | . . . Cargo Convoy Interrupts . | . . . Stealth | -11 -10 -9 --------- Run | Yrd Mat Mat Distress Signals 6 | . 2 4 Communications Jammed . | . . . Distress Signals . | . . . Times Spotted 30 | . 11 19 Peak Tracking Total 9 | . 4 9 Tactical Retreats 2 | . 1 1 Traps | -11 -10 -9 ------- Run | Yrd Mat Mat Traps Triggered 1 | . 1 . Indirectly . | . . . Trap Hack Attempts . | . . . Triggered . | . . . Disarmed . | . . . Reprogrammed . | . . . Reused . | . . . Traps Extracted . | . . . Installed . | . . . Triggered . | . . . Machines | -11 -10 -9 ---------- Run | Yrd Mat Mat Machines Disabled 2 | . . 2 Max in Single Turn 1 | . . 1 Machines Repaired . | . . . Machines Dismantled . | . . . Machines Sabotaged . | . . . Overloaded Fab Kills . | . . . Hacking | -11 -10 -9 --------- Run | Yrd Mat Mat Machines Accessed 1 | . . 1 Terminals . | . . . Fabricators . | . . . Repair Stations 1 | . . 1 Recycling Units . | . . . Scanalyzers . | . . . Garrison Access . | . . . Total Hacks 3 | . . 3 Successful 1 | . . 1 Failed 2 | . . 2 Catastrophic . | . . . Database Lockouts . | . . . Manual . | . . . Terminals . | . . . Fabricators . | . . . Repair Stations 3 | . . 3 Recycling Units . | . . . Scanalyzers . | . . . Garrison Access . | . . . Terminal Hacks . | . . . Fabricator Hacks . | . . . Repair Station Hacks 1 | . . 1 Scan Component 1 | . . 1 Recycling Unit Hacks . | . . . Scanalyzer . | . . . Garrison Access Hacks . | . . . Unauthorized Hacks . | . . . Terminals . | . . . Fabricators . | . . . Repair Stations . | . . . Recycling Units . | . . . Scanalyzers . | . . . Garrison Access . | . . . Data Cores Recovered . | . . . Used . | . . . Hacking Detections 1 | . . 1 Full Trace Events 1 | . . 1 Feedback Events . | . . . Feedback Blocked . | . . . Robot Schematics Acquired . | . . . Robots Built . | . . . Authchips . | . . . Time . | . . . Total Robot Build Rating . | . . . Part Schematics Acquired . | . . . Parts Built . | . . . Authchips . | . . . Time . | . . . Total Part Build Rating . | . . . Parts Repaired . | . . . Time . | . . . Parts Recycled . | . . . Recycled Matter . | . . . Retrieved Matter . | . . . Retrieved Components . | . . . Parts Scanalyzed . | . . . Part Schematics Acquired . | . . . Parts Damaged . | . . . Bothacking | -11 -10 -9 ------------ Run | Yrd Mat Mat Used RIF Installer . | . . . Robots Hacked 1 | . 1 . Non-combat 1 | . 1 . Combat . | . . . Robot Hacks Applied 1 | . 1 . parse_system 1 | . 1 . Relay Couplers Released . | . . . Fabnet Peak Effective % . | . . . Robots Rewired . | . . . Allies Hacked . | . . . Hacks Repelled . | . . . Allies | -11 -10 -9 -------- Run | Yrd Mat Mat Total Allies . | . . . Largest Group . | . . . Highest-Rated Group . | . . . Highest-Rated Ally . | . . . Total Orders . | . . . Ally Attacks . | . . . Total Damage . | . . . Kills . | . . . Allies Corrupted . | . . . Allies Melted . | . . . Intel | -11 -10 -9 ------- Run | Yrd Mat Mat Robot Analysis Total . | . . . Derelict Logs Recovered . | . . . Drone Launches . | . . . Drone Recoveries . | . . . Exploration | -11 -10 -9 ------------- Run | Yrd Mat Mat Turns Passed 901 | 65 450 386 Spaces Moved 368 | 46 193 129 Core 11 | 11 . . Treads . | . . . Legs 357 | 35 193 129 Wheels . | . . . Hover . | . . . Flight . | . . . Fastest Speed 50 | 50 120 190 Average Speed 176 | 103 168 214 Slowest Speed 330 | 120 190 330 Overloaded Moves . | . . . Propulsion Burnouts . | . . . Robots Hopped . | . . . Cave-ins Triggered . | . . . Exploration Rate (%) 16 | 3 33 14 Regions Visited 2 Branch Regions . Pre-discovered Areas . | . . . Known Exits Taken 1 | . 1 . Unknown Exits Taken 1 | 1 . . Scrap Searched . | . . . Spaces Dug . | . . . Terrain Destroyed 62 | . 13 49 Melee . | . . . Projectile 7 | . . 7 AOE 55 | . 13 42 Terrain Rammed . | . . . Walls Destroyed . | . . . Machines Disabled . | . . . Actions | -11 -10 -9 --------- Run | Yrd Mat Mat Total 543 | 64 291 188 Wait 56 | . 56 . Move 366 | 45 192 129 Hop . | . . . Pick Up 42 | 12 16 14 Fast Attach . | . . . Attach 16 | 6 1 9 Detach . | . . . Swap 15 | . 8 7 Drop 11 | 1 5 5 Fire 22 | . 12 10 Melee 1 | . 1 . Ram . | . . . Kick 14 | . . 14 Crush . | . . . Escape Stasis . | . . . Rewire . | . . . Trap . | . . . Miscellaneous . | . . . Route ------- -11/Scrapyard -10/Materials (discovered 2 exits: *Mat / [*Min]) -9/Materials History --------- Turn | Location | Event 8 | -11/Scrapyard | Discovered new exit (range 16) 66 | -11/Scrapyard | Entered Materials 283 | -10/Materials | Discovered new exit (range 16) 308 | -10/Materials | Build established: Mutant 477 | -10/Materials | Discovered new exit (range 10) 514 | -10/Materials | Identified exit to Materials 516 | -10/Materials | Entered another Materials area 516 | -9/Materials | Evolved 2 slots: Power x1, Weapon x1 685 | -9/Materials | Destroyed 8 combat bots 685 | -9/Materials | Lost 4 parts (1p1n2w) 871 | -9/Materials | Core integrity fell below 50% 895 | -9/Materials | Core integrity fell below 20% 902 | -9/Materials | Destroyed by G-34 Mercenary with Small Laser Last Messages --------------- Acquired Particle Gun. Dropped Datajack. Acquired Hcp. Storage Unit. Acquired Datajack. Acquired Particle Gun. Kicked G-34 Mercenary. Kicked G-34 Mercenary out of the way. Kicked G-34 Mercenary. Kicked G-34 Mercenary out of the way. Imp. Aluminum Leg destroyed. Kicked G-34 Mercenary. Kicked G-34 Mercenary out of the way. Grenade Launcher destroyed. Kicked G-34 Mercenary. Lgt. Ion Engine destroyed. Rocket Launcher destroyed. Kicked G-34 Mercenary. Kicked G-34 Mercenary out of the way. Imp. Ion Engine destroyed. Core Shielding destroyed. Map ----- +----------------------------------------------------+ | ????????????????????# ""T"" ] #?????? | | ????????????????????# """"" ####?????? | | ????????????????????# # #???????? | | ????????????????????######## #???????? | | ??????????????????????????## ##??????? | | ??????????????????????????# #??????? | | ??????????????????########## # ####?????? | | ?????????????? # #?????? | | ?????????????? # #?????? | | ?????????????? [[ "" #####?????? | | ??????????????? [! "" # #???????? | | ??????????????? "" # #???????? | | ???????????????? # #???????? | | ??????????????? #???????? | | ??????????????? = !!! ########## | | ??????????????? %= !!! # # | | ??????????????? * !!! """ # | | ??????????????? "R # | | ??????????????? # """ """ # | | ???????????????? ############# / """ """ # | | ?????????????????????????????# # """ # | | ?????????????????????????????# # # | | ?????????????????????????????# # # | | ??????????????????????######## #### ###### | | ??????????????????????# # !###????? | | ??????????????????????# @ # !#?????? | | ??????????????????????# ] + !#?????? | | ??????????????????????# # !#?????? | | ??????????????????????# g g # !#?????? | | ??????????????????????# # !##?????? | | ???????????????##########g#### ####??????? | | ??????????????# ## #?????????? | | ??????????????# """ """ ## #?????????? | | ??????????????? """""""""w ## #?????????? | | ???????????????? """"" g ## #?????????? | | ???????????????? | #? #?????????? | | ??????????????? #? #?????????? | | ???????????????#??#######/###? ?????????? | | ???????????????????????? u ??? ?????????? | | ???????????????????????? ??? T ?????????? | | ???????????????????????? ??? ? ??????????? | | ????????????????????????#+#????????????????? | | ????????????????????????? ?????????????????? | | ?????????????????????????"?????????????????? | | ???????????????????????????????????????????? | | ???????????????????????????????????????????? | | ???????????????????????????????????????????? | | ???????????????????????????????????????????? | | ???????????????????????????????????????????? | | ???????????????????????????????????????????? | +----------------------------------------------------+ Best States ------------- Heat Dissipation 42 Energy Generation 17 Energy Capacity 415 Matter Stores 300 Matter Capacity 300 Sight Range 16 Terrain Scan Density 10 Core Shielding 20 Evasion (%) 55 Item Schematics ----------------- None Robot Schematics ------------------ None Fabricated ------------ Nothing Alien Tech Used ----------------- None Achievements -------------- None Challenges ------------ None Game ------ Seed WeaponFrostConstruct Manual? 0 Play Time 00:14:41 Cumulative 3.8 hours Start 2025.01.04 @ 22:27:38 End 2025.01.04 @ 22:41:28 Sessions 1 Manual Loads 0 Difficulty Rogue Special Mode None Game No. 6 Rogue 6 Adventurer 0 Explorer 0 Win Type - Total 0 Types 0/0/0/0/0/0/0/0/0 Lore% 2 Gallery% 8 Achievement% 11 Wizard Run 0 Options --------- Layout 1 ASCII 0 Keyboard 0 Movement Mouse Keybinds 0 Fullscreen 1 Font 24/Smallcaps Map View 50x35 Zoom Use 0% Tactical HUD 0 Map Filters NONE Filters NONE Steam 0 RUN: defb03f8-530c-4f9c-893b-b4fb8119908c